Cogmind - Beta 14 @@@ ROGUE MODE // 2024.08.27 @ 18:57:11 Player: Coronach Result: Destroyed by G-47 Trooper with Particle Gun Performance ------------- Evolutions (0) 0 Regions Visited (2) 400 Robots Destroyed (15) 75 Value Destroyed (294) 294 Prototype IDs (0) 0 Alien Tech Used (0) 0 Bonus (0) 0 TOTAL SCORE: 769 Bonus ------- None Cogmind --------- Core Integrity 0/250 Matter 297/300 Energy 125/125 System Corruption 0% Temperature Cool (33) Movement Rolling (100) Location -10/Mines Parts ------- > --- POWER (1) -------- Light Ion Engine > --- PROPULSION (2) --- Compact Wheel > --- UTILITY (2) ------ Small Storage Unit > --- WEAPON (2) ------- Light Assault Rifle Light Assault Rifle > --- INVENTORY (8) ---- Light Treads Compact Wheel Compact Wheel Compact Wheel Heat Sink Medium Matter Pod (100) Seismic Detector Bore Cannon Peak State ------------ > --- POWER ------------ Light Ion Engine > --- PROPULSION ------- Compact Wheel Compact Wheel > --- UTILITY ---------- Small Storage Unit Seismic Detector > --- WEAPON ----------- Light Assault Rifle Bore Cannon > --- INVENTORY -------- Light Treads Compact Wheel Compact Wheel Compact Wheel Heat Sink Medium Matter Pod Light Assault Rifle [Rating: 11] Favorites ----------- Power Light Ion Engine Engine Light Ion Engine Propulsion Compact Wheel Treads Light Treads Leg Aluminum Leg Wheel Compact Wheel Utility Small Storage Unit Device Heat Sink Storage Small Storage Unit Processor Signal Interpreter Weapon Particle Gun Energy Gun Particle Gun Ballistic Gun Light Assault Rifle Ballistic Cannon Bore Cannon Build | -11 -10 -10 ------- Run | Yrd Mat Min Slots Evolved . | . . . Power . | . . . Propulsion . | . . . Utility . | . . . Weapon . | . . . Parts Attached 27 | . 14 13 Power 3 | . 1 2 Engine 3 | . 1 2 Core . | . . . Reactor . | . . . Propulsion 15 | . 9 6 Treads 4 | . 2 2 Leg . | . . . Wheel 11 | . 7 4 Hover . | . . . Flight . | . . . Utility 4 | . 2 2 Device 3 | . 1 2 Storage . | . . . Processor 1 | . 1 . Hackware . | . . . Protection . | . . . Artifact . | . . . Weapon 5 | . 2 3 Energy Gun 2 | . 2 . Energy Cannon . | . . . Ballistic Gun 2 | . . 2 Ballistic Cannon 1 | . . 1 Launcher . | . . . Special Weapon . | . . . Impact Weapon . | . . . Slashing Weapon . | . . . Piercing Weapon . | . . . Special Melee Weapon . | . . . Unidentified Prototypes . | . . . Parts Lost 9 | . 4 5 Power 1 | . 1 . Propulsion 6 | . 3 3 Utility 1 | . . 1 Weapon 1 | . . 1 Highest Loss Streak 2 | . 2 2 To Critical Strikes . | . . . Average Slot Usage (%) 95 | . 93 97 Engine 13 | . 12 14 Treads 1 | . . 1 Wheel 25 | . 25 25 Device 10 | . 7 13 Storage 14 | . 14 14 Processor 1 | . 3 . Energy Gun 16 | . 21 10 Ballistic Gun 10 | . 6 14 Ballistic Cannon 1 | . . 2 Peak Build Rating 11 | . 9 11 Average Rating 8 | . 7 8 On Entrance 7 | 6 6 9 Naked Turns . | . . . Heaviest Build 19 | 11 15 19 Greatest Support 32 | 20 32 32 Greatest Overweight (x) . | . . . Average Overweight (x) . | . . . Largest Inventory Capacity 8 | . 8 8 Average Capacity 8 | . 8 8 Most Carried 8 | . 8 8 Average Carried 6 | . 4 7 Final Capacity 8 | 8 8 8 Final Carried 8 | 6 8 8 Class Distribution -------------------- 63% | Scavenger-Mutant 36% | Mutant Dominant Class ---------------- Scavenger-Mutant | -10/Materials Scavenger-Mutant | -10/Mines Resources | -11 -10 -10 ----------- Run | Yrd Mat Min Matter Collected 663 | 200 156 307 Remotely . | . . . Salvage Created 552 | . 432 120 Parts 28 | . 16 12 Haulers Intercepted . | . . . Recyclers Shooed 1 | . 1 . Parts Field Recycled . | . . . Retrieved Matter . | . . . Parts Self-Destructed . | . . . Prevented . | . . . Kills | -11 -10 -10 ------- Run | Yrd Mat Min Combat Hostiles Destroyed 14 | . 4 10 Guns 11 | . 3 8 Cannons 2 | . . 2 Classes Destroyed 4 | . 2 2 Recycler 3 | . 3 . Swarmer 7 | . . 7 Grunt 5 | . 4 1 Assembled 2 | . . 2 Best Kill Streak 4 | . 4 3 Combat Bots Only 3 | . 2 3 Max Kills in Single Turn 1 | . 1 1 Gunslinging . | . . . Exploded . | . . . Melee . | . . . Uniques/NPCs Destroyed . | . . . Combat | -11 -10 -10 -------- Run | Yrd Mat Min Hostile Shots Fired 134 | . 48 86 Missed 33 | . 10 23 Damage Taken 1213 | . 500 713 Core 257 | . 120 137 Absorbed by Shields . | . . . Core Remaining (%) 100 | 100 . . Volleys Fired 64 | . 26 38 Largest 2 | . 2 2 Hottest 130 | . 70 130 Shots Fired 124 | . 52 72 Gun 114 | . 52 62 Cannon 10 | . . 10 Launcher . | . . . Special . | . . . Kinetic 65 | . 26 39 Thermal 59 | . 26 33 Explosive . | . . . Electromagnetic . | . . . Robot Hit Streak 10 | . 10 3 Robot Miss Streak 5 | . 3 5 Penetration Max . | . . . Secondary Targets 1 | . . 1 Max Gunslinging Chain 1 | . . 1 Shots Hit Robots 62 | . 31 31 Core Hits 30 | . 15 15 Critical Kills 2 | . 1 1 Critical Parts Destroyed 1 | . . 1 Critical Strikes 8 | . 5 3 Burn 5 | . 4 1 Destroy 3 | . 1 2 Melee Attacks . | . . . Impact . | . . . Slashing . | . . . Piercing . | . . . Sneak Attacks . | . . . Combat Hostiles . | . . . Follow-up Attacks . | . . . Damage Inflicted 793 | . 338 455 Guns 690 | . 338 352 Cannons 103 | . . 103 Explosions . | . . . Melee . | . . . Ramming . | . . . Kinetic 350 | . 135 215 Thermal 443 | . 203 240 Explosive . | . . . Electromagnetic . | . . . Impact . | . . . Slashing . | . . . Piercing . | . . . Highest Corruption . | . . . Average Corruption . | . . . Corruption Purged . | . . . Corruption Blocked . | . . . Overload Shots . | . . . Overflow Damage 13 | . . 13 Projectiles 13 | . . 13 Explosions . | . . . Melee . | . . . Knockbacks 1 | . . 1 Impact . | . . . Kinetic 1 | . . 1 Secondary . | . . . Self-Inflicted Damage . | . . . Shots . | . . . Rammed . | . . . Targets Rammed . | . . . Kicked . | . . . Crushed . | . . . Highest Temperature 235 | . 220 235 Average Temperature 91 | . 114 74 Received Heat Transfer 433 | . 300 133 Siege Activations . | . . . Robots Corrupted . | . . . Combat Hostiles . | . . . Parts Fried . | . . . Impact Corruptions . | . . . Robots Melted 1 | . 1 . Combat Hostiles 1 | . 1 . Parts Melted 1 | . 1 . Heat Transferred 1517 | . 888 629 Parts Sabotaged . | . . . Parts Stolen . | . . . Parts Stripped . | . . . Power Chain Reactions . | . . . Alert | -11 -10 -10 ------- Run | Yrd Mat Min Peak Influence 239 | . 131 239 Initial . | . . . Average 68 | . 37 101 Maximum Alert Level 1 | . . 1 Low Security (%) 99 | . 100 98 Level 1 . | . . 1 Level 2 . | . . . Level 3 . | . . . Level 4 . | . . . Level 5 . | . . . High Security . | . . . Max Security . | . . . Squads Dispatched . | . . . Investigation . | . . . Extermination . | . . . Reinforcement . | . . . Assault . | . . . Garrison . | . . . Intercept . | . . . Searches Triggered . | . . . Construction Impeded . | . . . Haulers Reinforced . | . . . Active Scanning Responses . | . . . Cargo Convoy Interrupts . | . . . Stealth | -11 -10 -10 --------- Run | Yrd Mat Min Distress Signals . | . . . Communications Jammed . | . . . Distress Signals . | . . . Times Spotted 37 | . 11 26 Peak Tracking Total 9 | . 4 9 Tactical Retreats 4 | . . 4 Traps | -11 -10 -10 ------- Run | Yrd Mat Min Traps Triggered . | . . . Indirectly . | . . . Trap Hack Attempts . | . . . Triggered . | . . . Disarmed . | . . . Reprogrammed . | . . . Reused . | . . . Traps Extracted . | . . . Installed . | . . . Triggered . | . . . Machines | -11 -10 -10 ---------- Run | Yrd Mat Min Machines Disabled 1 | . . 1 Max in Single Turn 1 | . . 1 Machines Repaired . | . . . Machines Dismantled . | . . . Machines Sabotaged . | . . . Overloaded Fab Kills . | . . . Hacking | -11 -10 -10 --------- Run | Yrd Mat Min Machines Accessed 7 | . 6 1 Terminals 6 | . 5 1 Fabricators . | . . . Repair Stations 1 | . 1 . Recycling Units . | . . . Scanalyzers . | . . . Garrison Access . | . . . Total Hacks 18 | . 17 1 Successful 12 | . 11 1 Failed 6 | . 6 . Catastrophic . | . . . Database Lockouts . | . . . Manual 16 | . 16 . Terminals 15 | . 14 1 Fabricators . | . . . Repair Stations 3 | . 3 . Recycling Units . | . . . Scanalyzers . | . . . Garrison Access . | . . . Terminal Hacks 3 | . 2 1 Terminal Index 1 | . 1 . Locate Traps 1 | . 1 . Zone Layout 1 | . . 1 Fabricator Hacks . | . . . Repair Station Hacks . | . . . Recycling Unit Hacks . | . . . Scanalyzer . | . . . Garrison Access Hacks . | . . . Unauthorized Hacks 9 | . 9 . Terminals 8 | . 8 . Botnet 2 | . 2 . Operators 1 | . 1 . Skim 5 | . 5 . Fabricators . | . . . Repair Stations 1 | . 1 . Mechanics 1 | . 1 . Recycling Units . | . . . Scanalyzers . | . . . Garrison Access . | . . . Data Cores Recovered . | . . . Used . | . . . Hacking Detections 4 | . 4 . Full Trace Events . | . . . Feedback Events . | . . . Feedback Blocked . | . . . Robot Schematics Acquired . | . . . Robots Built . | . . . Authchips . | . . . Time . | . . . Total Robot Build Rating . | . . . Part Schematics Acquired . | . . . Parts Built . | . . . Authchips . | . . . Time . | . . . Total Part Build Rating . | . . . Parts Repaired . | . . . Time . | . . . Parts Recycled . | . . . Recycled Matter . | . . . Retrieved Matter . | . . . Retrieved Components . | . . . Parts Scanalyzed . | . . . Part Schematics Acquired . | . . . Parts Damaged . | . . . Bothacking | -11 -10 -10 ------------ Run | Yrd Mat Min Used RIF Installer . | . . . Robots Hacked . | . . . Non-combat . | . . . Combat . | . . . Robot Hacks Applied . | . . . Relay Couplers Released . | . . . Fabnet Peak Effective % . | . . . Robots Rewired . | . . . Allies Hacked . | . . . Hacks Repelled . | . . . Allies | -11 -10 -10 -------- Run | Yrd Mat Min Total Allies . | . . . Largest Group . | . . . Highest-Rated Group . | . . . Highest-Rated Ally . | . . . Total Orders . | . . . Ally Attacks . | . . . Total Damage . | . . . Kills . | . . . Allies Corrupted . | . . . Allies Melted . | . . . Intel | -11 -10 -10 ------- Run | Yrd Mat Min Robot Analysis Total . | . . . Derelict Logs Recovered 2 | . . 2 Drone Launches . | . . . Drone Recoveries . | . . . Exploration | -11 -10 -10 ------------- Run | Yrd Mat Min Turns Passed 1278 | . 668 610 Spaces Moved 928 | 1 460 467 Core . | . . . Treads 5 | . . 5 Legs 1 | 1 . . Wheels 922 | . 460 462 Hover . | . . . Flight . | . . . Fastest Speed 90 | 120 90 100 Average Speed 99 | 120 98 100 Slowest Speed 160 | 120 100 160 Overloaded Moves . | . . . Propulsion Burnouts . | . . . Robots Hopped . | . . . Cave-ins Triggered . | . . . Exploration Rate (%) 54 | 2 72 88 Regions Visited 2 Branch Regions 1 Pre-discovered Areas 1 | . 1 . Known Exits Taken . | . . . Unknown Exits Taken 2 | 1 1 . Scrap Searched 1 | . . 1 Spaces Dug . | . . . Terrain Destroyed 8 | . . 8 Melee . | . . . Projectile 8 | . . 8 AOE . | . . . Terrain Rammed . | . . . Walls Destroyed . | . . . Machines Disabled . | . . . Actions | -11 -10 -10 --------- Run | Yrd Mat Min Total 1167 | . 629 538 Wait 121 | . 110 11 Move 926 | . 459 467 Hop . | . . . Pick Up 13 | . 9 4 Fast Attach 7 | . 4 3 Attach 8 | . 6 2 Detach 5 | . 5 . Swap 12 | . 4 8 Drop 11 | . 6 5 Fire 64 | . 26 38 Melee . | . . . Ram . | . . . Kick . | . . . Crush . | . . . Escape Stasis . | . . . Rewire . | . . . Trap . | . . . Miscellaneous . | . . . Route ------- -11/Scrapyard -10/Materials (discovered 5 exits: *Mat x3 / *Min / Sub) -10/Mines (discovered 2 exits: *Mat x2) History --------- Turn | Location | Event 1 | -11/Scrapyard | Discovered new exit (range 0) 1 | -11/Scrapyard | Entered Materials 69 | -10/Materials | Discovered new exit (range 14) 168 | -10/Materials | Identified exit to Materials 336 | -10/Materials | Discovered exit to Materials (range 13) 421 | -10/Materials | Discovered exit to Materials (range 13) 436 | -10/Materials | Discovered new exit (range 8) 472 | -10/Materials | Learned Storage garrison access intel 515 | -10/Materials | Learned Storage garrison access intel 550 | -10/Materials | Learned 4 Recycling zone layouts 577 | -10/Materials | Learned Storage stockpile data 594 | -10/Materials | Identified exit to Subcaves 596 | -10/Materials | Build established: Scavenger-Mutant 614 | -10/Materials | Learned location of Subcaves (-10) 636 | -10/Materials | Learned Storage trap positions 669 | -10/Materials | Learned location of 1 exit from Storage 669 | -10/Materials | Entered Mines 672 | -10/Mines | Core integrity fell below 50% 741 | -10/Mines | Assembled infested the area 746 | -10/Mines | Assisted by a Guerilla fighting off Assembled 904 | -10/Mines | Learned Materials terminal intel 1098 | -10/Mines | Discovered exit to Materials (range 8) 1156 | -10/Mines | Learned Materials trap positions 1183 | -10/Mines | Discovered exit to Materials (range 15) 1270 | -10/Mines | Core integrity fell below 20% 1279 | -10/Mines | Destroyed by G-47 Trooper with Particle Gun Last Messages --------------- 01098_ EXIT=FOUND: MATERIALS 01107_ Connecting with Terminal... 01107_ Current location identified: Mines >>Layout(Zone) Retrieving Zone 5C layout... Downloaded map data. 01118_ U-05 Engineer builds a Wall. 01141_ U-05 Engineer lays Concrete. 01142_ Acquired 58 matter. 01143_ U-05 Engineer lays Concrete. 01156_ Acquired derelict log, extracted data. Data stored: Materials trap records. 01159_ U-05 Engineer lays Concrete. 01166_ Searching scrap... 01166_ Found Mining Claw. 01166_ Found 47 Matter. 01183_ EXIT=FOUND: MATERIALS 01267_ Com. Wheel destroyed. 01275_ Terrain Scanner destroyed. 01277_ G-34 Mercenary destroyed. Map ----- +----------------------------------------------------+ | #""# # # ##??###?##???# #???????????? | | ####### ### # #????????????# #???????????? | | #?????#### ## #???????????## ######??????? | | ######### ## ###########?# #??????? | | " #?# #??????? | | ########### # #?# #??????? | | #?????????# ############ #?# #??????? | | #?????????# #??????????# #?# """ #??????? | | #?????????## ##???????#### #?# """ #??????? | | #??????????###?######?## # ### """ #??????? | | #??????????????# ### ## #??????? | | ???????????????# #### ####??????? | | ????#??????????# ### #?????????? | | ?#####????????## #?????????? | | ?# ##???##### ### #?????????? | | ## ###### ###?##########?????????? | | # ##??????????????????????? | | ##??????????????????????? | | ###### #??????????????????????? | | ###????## ##????###??????????????? | | ##???????## ##??# ###????????????? | | ##?????????#### ### #?????????????? | | ###?????????????## ##????????????? | | ????????????????#### ###??????????? | | ?????????#?????????##### #???????????? | | ???????????????????????##@ #???#???????? | | ??????#????? ?????#?????# ##???????????? | | ????????????????????????# ##????????????? | | ????????????? ??????????# ##?????????????? | | ????????????????????????# ###??????????????? | | ????????????????????????#g ##????????????????? | | ???????????????????????? =% #?????????????????? | | ???????????????????????? = ?#???????????????? | | ???????????????????????? ?????????????????? | | ???????????????????????? ????????????????? | | ??????????????? ???????? ????????????????? | | ???????????????????????? ????????????????? | | ???????????????????????? ##???????????????? | | ???????????????????????? ????????????????? | | ???????????????????????? #????????????????? | | ???????????????????????? ??????????????????? | | ??????????????????????????????????????????????? | | ??????????????????????????????????????????????? | | ??????????????????????????????????????????????? | | ??????????????????????????????????????????????? | | ??????????????????????????????????????????????? | | | | | | | | | +----------------------------------------------------+ Best States ------------- Heat Dissipation 35 Energy Generation 10 Energy Capacity 125 Matter Stores 300 Matter Capacity 300 Sight Range 16 Terrain Scan Range 14 Terrain Scan Density 10 Evasion (%) 42 Recoil Reduction 1 Item Schematics ----------------- None Robot Schematics ------------------ None Fabricated ------------ Nothing Alien Tech Used ----------------- None Achievements -------------- None Challenges ------------ None Game ------ Seed PoweredAntimatterInterpreter Manual? 0 Play Time 00:30:20 Cumulative 214.6 hours Start 2024.08.27 @ 18:29:30 End 2024.08.27 @ 18:57:11 Sessions 1 Manual Loads 0 Difficulty Rogue Special Mode None Game No. 84 Rogue 81 Adventurer 0 Explorer 3 Win Type - Total 3 Types 2/0/0/1/0/0/0/0/0 Lore% 27 Gallery% 61 Achievement% 50 Wizard Run 0 Options --------- Layout 2 ASCII 0 Keyboard 1 Movement Numpad Keybinds 0 Fullscreen 2 Font 24/Terminus Map View 76x44 Zoom Use 0% Tactical HUD 1 Map Filters NONE Filters NONE Steam 1 RUN: bf20c1df-4970-4fd1-a03c-29fbfcdae337